Cogmind - Beta 9 @@@ ROGUE MODE // 2019.10.23 @ 20:19:07 Player: Falconhoof Result: Destroyed by as-12154 with Assembled Blade Performance ------------- Evolutions (0) 0 Regions Visited (2) 400 Robots Destroyed (27) 135 Value Destroyed (509) 509 Prototype IDs (2) 40 Alien Tech Used (0) 0 Bonus (0) 0 TOTAL SCORE: 1084 Bonus ------- None Cogmind --------- Core Integrity 0/250 Matter 300/300 Energy 250/250 System Corruption 4% Temperature Cool (0) Location -10/Mines Parts ------- Power (1) Ion Engine Propulsion (2) Combat Airjet Utility (2) Large Storage Unit Weapon (2) Inventory (10) Light Ion Engine Heat Sink Signal Interpreter Launcher Guidance Computer Power Shielding Shock Absorption System Peak State ------------ Power Ion Engine Propulsion Combat Airjet Utility Large Storage Unit Sensor Array Weapon Light Assault Rifle Inventory Light Ion Engine Heat Sink Signal Interpreter Launcher Guidance Computer Power Shielding Shock Absorption System Datajack [Rating: 10] Favorites ----------- Power Ion Engine Engine Ion Engine Propulsion Light Treads Treads Light Treads Hover Unit Combat Airjet Utility Large Storage Unit Device Sensor Array Storage Large Storage Unit Weapon Assault Rifle Energy Gun Medium Laser Ballistic Gun Assault Rifle Ballistic Cannon Light Cannon Special Melee Weapon Datajack Build | -11 -10 -10 ------- Run | Scr Mat Min Slots Evolved . | . . . Power . | . . . Propulsion . | . . . Utility . | . . . Weapon . | . . . Parts Attached 20 | 6 7 7 Power 3 | 1 1 1 Engine 3 | 1 1 1 Core . | . . . Reactor . | . . . Propulsion 3 | 2 . 1 Treads 2 | 2 . . Leg . | . . . Wheel . | . . . Hover 1 | . . 1 Flight . | . . . Utility 5 | 1 2 2 Device 3 | . 1 2 Storage 2 | 1 1 . Processor . | . . . Hackware . | . . . Protection . | . . . Artifact . | . . . Weapon 9 | 2 4 3 Energy Gun 3 | 1 2 . Energy Cannon . | . . . Ballistic Gun 3 | 1 1 1 Ballistic Cannon 2 | . 1 1 Launcher . | . . . Special Weapon . | . . . Impact Weapon . | . . . Slashing Weapon . | . . . Piercing Weapon . | . . . Special Melee Weapon 1 | . . 1 Unidentified Prototypes . | . . . Parts Lost 12 | . 1 11 Power 1 | . . 1 Propulsion 2 | . . 2 Utility 3 | . . 3 Weapon 6 | . 1 5 Highest Loss Streak 6 | . 1 6 Average Slot Usage (%) 88 | . 97 59 Engine 13 | . 14 12 Treads 23 | . 28 7 Hover 1 | . . 6 Device 10 | . 11 4 Storage 14 | . 14 14 Energy Gun 3 | . 5 . Ballistic Gun 12 | . 13 9 Ballistic Cannon 7 | . 9 3 Naked Turns . | . . . Heaviest Build 27 | 11 27 27 Greatest Support 40 | 40 40 40 Greatest Overweight (x) 7 | 3 . 7 Average Overweight (x) . | 1 . . Largest Inventory Capacity 12 | 6 12 10 Average Capacity 9 | 5 9 10 Most Carried 9 | 2 9 9 Average Carried 5 | 1 5 7 Final Capacity 10 | . . 10 Final Carried 6 | . . 6 Class Distribution -------------------- 100% | Mutant Dominant Class ---------------- Mutant | -10/Materials Mutant | -10/Mines Resources | -11 -10 -10 ----------- Run | Scr Mat Min Matter Collected 675 | 237 349 89 Remotely . | . . . Salvage Created 781 | . 694 87 Parts 51 | . 49 2 Haulers Intercepted 1 | . 1 . Recyclers Shooed 1 | . 1 . Parts Field Recycled . | . . . Retrieved Matter . | . . . Parts Self-Destructed . | . . . Prevented . | . . . Kills | -11 -10 -10 ------- Run | Scr Mat Min Combat Hostiles Destroyed 21 | . 17 4 Melee 2 | . . 2 Guns 12 | . 10 2 Cannons 7 | . 7 . Classes Destroyed 7 | . 6 1 Builder 3 | . 2 1 Hauler 1 | . 1 . Recycler 1 | . 1 . Watcher 1 | . 1 . Swarmer 6 | . 6 . Grunt 11 | . 11 . Assembled 4 | . . 4 Best Kill Streak 5 | . 5 1 Combat Bots Only 5 | . 5 1 Max Kills in Single Turn 2 | . 2 1 Gunslinging . | . . . Exploded . | . . . Melee 1 | . . 1 Uniques/NPCs Destroyed . | . . . Combat | -11 -10 -10 -------- Run | Scr Mat Min Damage Taken 1316 | . 485 831 Core 251 | . 81 170 Absorbed by Shields . | . . . Core Remaining (%) 100 | 100 . . Volleys Fired 91 | . 49 42 Largest 2 | . 2 2 Hottest 85 | . 85 70 Shots Fired 139 | . 94 45 Gun 100 | . 60 40 Cannon 39 | . 34 5 Launcher . | . . . Special . | . . . Kinetic 122 | . 77 45 Thermal 17 | . 17 . Explosive . | . . . Electromagnetic . | . . . Robot Hit Streak 15 | . 15 3 Robot Miss Streak 3 | . 3 3 Penetration Max . | . . . Secondary Targets . | . . . Shots Hit Robots 83 | . 57 26 Core Hits 48 | . 30 18 Critical Hits 1 | . 1 . Critical Kills 1 | . 1 . Critical Parts Destroyed . | . . . Melee Attacks 2 | . . 2 Impact . | . . . Slashing . | . . . Piercing . | . . . Sneak Attacks . | . . . Combat Hostiles . | . . . Follow-up Attacks . | . . . Damage Inflicted 1163 | . 880 283 Guns 645 | . 444 201 Cannons 472 | . 436 36 Explosions . | . . . Melee . | . . . Ramming 46 | . . 46 Kinetic 1006 | . 769 237 Thermal 111 | . 111 . Explosive . | . . . Electromagnetic . | . . . Impact . | . . . Slashing . | . . . Piercing . | . . . Highest Corruption 4 | . . 4 Average Corruption 3 | . . 3 Corruption Purged . | . . . Effects 3 | . . 3 Matter Fused 1 | . . 1 Energy Discharges 1 | . . 1 Data Loss (minor) 1 | . . 1 Overload Shots . | . . . Overflow Damage . | . . . Projectiles . | . . . Explosions . | . . . Melee . | . . . Knockbacks 8 | . 7 1 Impact . | . . . Kinetic 7 | . 6 1 Secondary 1 | . 1 . Self-Inflicted Damage 22 | . . 22 Shots . | . . . Rammed 7 | . . 7 Targets Rammed 7 | . . 7 Kicked . | . . . Crushed . | . . . Highest Temperature 147 | . 147 20 Average Temperature 53 | . 57 6 Received Heat Transfer 350 | . 210 140 Siege Activations . | . . . Robots Corrupted . | . . . Combat Hostiles . | . . . Parts Fried . | . . . Impact Corruptions . | . . . Robots Melted . | . . . Combat Hostiles . | . . . Parts Melted . | . . . Heat Transferred 333 | . 333 . Parts Sabotaged . | . . . Parts Stolen . | . . . Parts Stripped . | . . . Power Chain Reactions . | . . . Missiles Intercepted . | . . . Alert | -11 -10 -10 ------- Run | Scr Mat Min Peak Influence 337 | . 337 78 Average Influence 102 | . 134 25 Maximum Alert Level 1 | . 1 . Low Security (%) 82 | . . . Level 1 17 | . . . Level 2 . | . . . Level 3 . | . . . Level 4 . | . . . Level 5 . | . . . High Security . | . . . Max Security . | . . . Squads Dispatched 3 | . 3 . Investigation 2 | . 2 . Extermination . | . . . Reinforcement 1 | . 1 . Assault . | . . . Garrison . | . . . Intercept . | . . . Construction Impeded . | . . . Haulers Reinforced . | . . . Stealth | -11 -10 -10 --------- Run | Scr Mat Min Distress Signals 6 | . 6 . Communications Jammed . | . . . Distress Signals . | . . . Times Spotted 38 | . 26 12 Peak Tracking Total 6 | . 6 5 Tactical Retreats 1 | . 1 . Traps | -11 -10 -10 ------- Run | Scr Mat Min Traps Triggered 3 | . 3 . Indirectly . | . . . Trap Hack Attempts . | . . . Triggered . | . . . Disarmed . | . . . Reprogrammed . | . . . Reused . | . . . Traps Extracted . | . . . Installed . | . . . Triggered . | . . . Machines | -11 -10 -10 ---------- Run | Scr Mat Min Machines Disabled 1 | . 1 . Max in Single Turn 1 | . 1 . Machines Sabotaged . | . . . Garrisons Compromised . | . . . Overloaded Fab Kills . | . . . Fab Network Shutdowns . | . . . Hacking | -11 -10 -10 --------- Run | Scr Mat Min Machines Accessed 2 | . 2 . Terminals 2 | . 2 . Fabricators . | . . . Repair Stations . | . . . Recycling Units . | . . . Scanalyzers . | . . . Garrison Access . | . . . Total Hacks 6 | . 6 . Successful 4 | . 4 . Failed 2 | . 2 . Catastrophic . | . . . Database Lockouts . | . . . Manual . | . . . Terminals 6 | . 6 . Fabricators . | . . . Repair Stations . | . . . Recycling Units . | . . . Scanalyzers . | . . . Garrison Access . | . . . Terminal Hacks 4 | . 4 . Record 1 | . 1 . Prototype ID Bank 1 | . 1 . Alert Level 1 | . 1 . Unreport Threat 1 | . 1 . Fabricator Hacks . | . . . Repair Station Hacks . | . . . Recycling Unit Hacks . | . . . Scanalyzer . | . . . Garrison Access Hacks . | . . . Unauthorized Hacks . | . . . Terminals . | . . . Fabricators . | . . . Repair Stations . | . . . Recycling Units . | . . . Scanalyzers . | . . . Garrison Access . | . . . Data Cores Recovered . | . . . Used . | . . . Hacking Detections 2 | . 2 . Full Trace Events . | . . . Feedback Events . | . . . Feedback Blocked . | . . . Robot Schematics Acquired . | . . . Robots Built . | . . . Matter . | . . . Time . | . . . Total Robot Build Rating . | . . . Part Schematics Acquired . | . . . Parts Built . | . . . Matter . | . . . Time . | . . . Total Part Build Rating . | . . . Parts Repaired . | . . . Time . | . . . Parts Recycled . | . . . Recycled Matter . | . . . Retrieved Matter . | . . . Retrieved Components . | . . . Parts Scanalyzed . | . . . Part Schematics Acquired . | . . . Parts Damaged . | . . . Bothacking | -11 -10 -10 ------------ Run | Scr Mat Min Used RIF Installer . | . . . Robots Hacked 1 | . . 1 Non-combat . | . . . Combat 1 | . . 1 Robot Hacks Applied 2 | . . 2 parse_system 2 | . . 2 Relay Couplers Released . | . . . Robots Rewired . | . . . Allies Hacked . | . . . Hacks Repelled . | . . . Allies | -11 -10 -10 -------- Run | Scr Mat Min Total Allies . | . . . Largest Group . | . . . Highest-Rated Group . | . . . Highest-Rated Ally . | . . . Total Orders . | . . . Ally Attacks . | . . . Total Damage . | . . . Kills . | . . . Allies Corrupted . | . . . Allies Melted . | . . . Intel | -11 -10 -10 ------- Run | Scr Mat Min Robot Analysis Total . | . . . Derelict Logs Recovered . | . . . Drone Launches . | . . . Drone Recoveries . | . . . Exploration | -11 -10 -10 ------------- Run | Scr Mat Min Turns Passed 1283 | 88 929 266 Spaces Moved 640 | 56 457 127 Core 52 | 43 . 9 Treads 507 | 13 457 37 Legs . | . . . Wheels . | . . . Hover 81 | . . 81 Flight . | . . . Fastest Speed 50 | 50 160 80 Average Speed 152 | 138 160 129 Slowest Speed 400 | 200 160 400 Overloaded Moves . | . . . Propulsion Burnouts . | . . . Robots Hopped . | . . . Cave-ins Triggered . | . . . Exploration Rate (%) 32 | 5 63 28 Regions Visited 2 Branch Regions 1 Pre-discovered Areas . | . . . Known Exits Taken . | . . . Unknown Exits Taken 2 | 1 1 . Scrap Searched . | . . . Spaces Dug . | . . . Terrain Destroyed . | . . . Melee . | . . . Projectile . | . . . AOE . | . . . Actions | -11 -10 -10 --------- Run | Scr Mat Min Total 814 | 63 564 187 Wait 30 | . 30 . Move 638 | 55 456 127 Hop . | . . . Pick Up 15 | 2 11 2 Fast Attach 12 | 6 4 2 Attach 8 | . 3 5 Detach 5 | . 5 . Swap . | . . . Drop 6 | . 6 . Fire 91 | . 49 42 Melee 2 | . . 2 Ram 7 | . . 7 Kick . | . . . Crush . | . . . Escape Stasis . | . . . Rewire . | . . . Trap . | . . . Miscellaneous . | . . . Route ------- -11/Scrapyard -10/Materials (discovered 3 exits: [*Mat x2] / [*Min]) -10/Mines History --------- Turn | Location | Event 7 | -11/Scrapyard | Discovered new exit (range 15) 89 | -11/Scrapyard | Entered Materials 303 | -10/Materials | Build established: Mutant 398 | -10/Materials | Discovered new exit (range 16) 736 | -10/Materials | Discovered new exit (range 16) 906 | -10/Materials | Discovered new exit (range 16) 1018 | -10/Materials | Entered Mines 1037 | -10/Mines | Assembled infested the area 1120 | -10/Mines | Lost 6 parts (2n1u3w) 1144 | -10/Mines | Core integrity fell below 50% 1212 | -10/Mines | Core integrity fell below 20% 1259 | -10/Mines | Lost 3 parts (1u2w) 1284 | -10/Mines | Destroyed by as-12154 with Assembled Blade Last Messages --------------- System corrupted: Energy discharge (-60). Acquired 4 matter. The unstable cave ceiling collapses. System corrupted: Component data lost. Lgt. Assault Rifle destroyed. Jacked as-54239... >>parse_system Reading system data... Jacked as-54239... >>parse_system Reading system data... Datajack destroyed. Slammed into as-54239. as-54239 destroyed. Acquired 9 matter. Slammed into as-23027. as-23027 destroyed. System corrupted: Matter fused (-7). Acquired 7 matter. Slammed into as-55502. Map ----- +----------------------------------------------------+ | ?????????????????????????????????????????? | | ?????????????????????????????????????????? | | ?????????????????????????????????????????? | | ?????????????????????????????????????????? | | ?????????????????????????????????????????? | | ?????????????????????????????????????????? | | ?????????????????????????????????????????? | | ?????????????????????????????????????????? | | ?????????????????????????????????????????? | | ?????????????????????????????????????????? | | ?????????????????????????????????????????? | | ?????????????????????????????????????????? | | ?????????????????????????????????????????? | | ?????????????????????????????????????????? | | ?????????????????????????????????????????? | | ?????????????????????????????????????????? | | ?????????????????????###?????????????????? | | ?????????????????????# ?????????????????? | | ?????????????????????# #?????????????????? | | ?????????????????????# #?????????????????? | | ?????????????????????# #?????????????????? | | ?????????????????????# #?????????????????? | | ?????????????????????# #####?????????????? | | ?????????????????????# % #?????????????? | | ????????# #########%### #?????????????? | | ???????????# a@a % #?# #?????????????? | | ???????????# ###########?# #?????????????? | | ?????????????????????????# #?????????????? | | ?????????????????????????# ##????????????? | | ??????????????????######## ##???????????? | | ????????????????# #???????????? | | ??????????????????####### #???????????? | | ????????????????????????# #???????????? | | ????????????????????????# #???????????? | | ??????????###??????????## #???????????? | | ?????????## #????????## ##???????????? | | ?????????# "##?????## ##????????????? | | ?????????# ####### ##?????????????? | | ??#####???# ## #??????????????? | | ?## #?????# % ##??????????????? | | ?# #?????## %% ##???????????????? | | ?# ##????## %%###????????????????? | | ??# ###### ##??????????????????? | | ??## ##??#######??????????? | | ???## ###### # ##?????????? | | ????## # #?????????? | | ?????### ## % ###???????? | | ???????####### ##### # ## ## ##??????? | | ??????##?????## ##???# # # ###????? | | ??????# ###???####????# # # ### # ##???? | +----------------------------------------------------+ Best States ------------- Heat Dissipation 25 Energy Generation 10 Energy Capacity 250 Matter Stores 300 Matter Capacity 300 Sight Range 16 Robot Scan Range 10 Terrain Scan Density 10 Evasion (%) 49 Recoil Reduction 2 Item Schematics ----------------- None Robot Schematics ------------------ None Fabricated ------------ Nothing Alien Tech Used ----------------- None Achievements -------------- None Challenges ------------ None Game ------ Seed GodGhostMediator Manual? 0 Play Time 00:23:22 Cumulative 96.5 hours Start 2019.10.23 @ 19:45:24 End 2019.10.23 @ 20:19:07 Sessions 1 Manual Loads 0 Difficulty Rogue Special Mode None Game No. 45 Rogue 45 Adventurer 0 Explorer 0 Win Type - Total 0 Types 0/0/0/0/0/0/0 Lore% 25 Gallery% 30 Achievement% 17 Wizard Run 0 Options --------- ASCII 0 Keyboard 0 Movement Numpad Keybinds 0 Fullscreen 1 Font 18/SmallcapsGlow Map View 76x50 Tactical HUD 0 Map Filters NONE Filters NONE Steam 1 RUN: b5515a81-3272-4779-b4ff-ee71b820f2c8